[Event "40th Cappelle Open 2024"]
[Site "Cappelle-la-Grande"]
[Date "2024.03.08"]
[Round "9.18"]
[White "Enchev, Ivajlo"]
[Black "Midy, Robin"]
[Result "1/2-1/2"]
[ECO "E05"]
[WhiteElo "2425"]
[BlackElo "2151"]
[Annotator "TA"]
[PlyCount "140"]
[EventDate "2024.03.02"]
[EventType "swiss"]
[EventCountry "FRA"]
[SourceTitle "playchess.com"]
[Source "ChessBase"]
[SourceQuality "1"]
[TimeControl "40/5400+30:1800+30"]

{[%evp 13,140,9,16,13,7,15,28,23,51,0,6,-15,0,-17,-45,-125,-65,-75,-19,-143,-79,-80,-89,-86,-51,-72,17,9,61,88,79,51,243,238,240,258,214,249,236,168,175,169,186,218,256,242,216,156,170,182,297,178,141,152,338,355,307,174,360,274,373,354,378,375,359,365,390,365,374,233,229,167,247,247,237,133,142,136,145,144,172,173,172,186,330,332,332,317,352,322,294,343,343,343,339,158,146,99,93,68,91,48,37,39,38,39,47,0,0,0,0,0,0,0,0,0,0,0,0,0,0,0,0,0,0,0,0,0,0]} 1. d4 {[%emt 0:00:04]} d5 {[%emt 0:03:02]} 2. Nf3 {[%emt 0:00:24]} Nf6 {[%emt 0:00:14]} 3. c4 {[%emt 0:00:07]} e6 {[%emt 0:00:06]} 4. g3 {[%emt 0:00:03]} Be7 {[%emt 0:00:10]} 5. Bg2 {[%emt 0:00:04]} O-O {[%emt 0:00:08]} 6. O-O {[%emt 0:00:09]} dxc4 {[%emt 0:00:24]} 7. Qc2 {[%emt 0:00:11]} b5 {[%emt 0:00:55]} 8. a4 {[%emt 0:00:06]} b4 {[%emt 0:00:43]} 9. Nfd2 {[%emt 0:00:53]} (9. Qxc4 Ba6 10. Qc2 Nbd7 $15) 9... Nd5 {[%emt 0:00:33][%cal Bf6d5,Bd5b6,Bb6c4][%mdl 32]} 10. Nxc4 {[%emt 0:01:14] White has an edge.} (10. Qxc4 Ba6 11. Qc2 c5 $17 (11... Bxe2 12. Re1 $17)) 10... c5 {[%emt 0:01:08]} 11. e4 {[%emt 0:02:58]} Nb6 {[%emt 0:01:00]} 12. e5 {[%emt 0:02:52] And now Nxb6 would win.} Nxc4 {[%emt 1:28:07]} 13. Bxa8 {[%emt 0:04:05]} Ba6 {[%emt 0:00:00]} 14. dxc5 {[%emt 0:01:00]} ({White should play} 14. Be4 $15) 14... Nd7 {[%emt 0:00:00]} (14... Nxe5 $17 {[%cal Oa6d3] White must now prevent ...Bd3!} 15. Rd1 Bd3) 15. Bg2 $15 {[%emt 0:00:48]} Bxc5 {[%emt 0:00:00]} (15... Ncxe5 $17 {[%cal Od7c5]} 16. Rd1 Bxc5) 16. Rd1 {[%emt 0:18:07]} (16. Bf4 $11) 16... Qe7 {[%emt 0:00:00]} (16... Ncxe5 $142 {aiming for ...Qc8.} 17. Qe4 Qf6) 17. b3 $17 {[%emt 0:22:18]} Ncxe5 {[%emt 0:00:00]} 18. Bb2 {[%emt 0:02:51]} Ng4 {[%emt 0:00:00] Excellent horsemanship.} 19. Bd4 $1 {[%emt 0:02:57]} (19. Rxd7 $2 Qxd7 20. Nc3 Bd3 $19 (20... bxc3 $2 21. Qxc3 Bxf2+ 22. Kh1 $19) (20... Bxf2+ $2 21. Kh1 $19)) 19... Bxd4 {[%emt 0:00:00]} (19... Rc8 $1 $17 {Strongly threatening ...Bxd4.} 20. Qe4 f5) 20. Rxd4 $11 {[%emt 0:00:45]} Qf6 {[%emt 0:00:00]} (20... Rc8 $11 21. Qd1 Qf6 22. Rxd7 (22. Qxg4 $2 Rc1+ 23. Rd1 Ne5 $19) 22... Nxf2) 21. Rxd7 $14 {[%emt 0:04:02]} Qxa1 {[%emt 0:00:00]} 22. Rxa7 {[%emt 0:00:17]} Be2 {[%emt 0:00:00]} 23. Qxe2 $18 {[%emt 0:09:29]} Qxb1+ {[%emt 0:00:00]} 24. Bf1 {[%emt 0:00:04]} h5 {[%emt 0:00:00]} 25. h3 {[%emt 0:00:11]} Nf6 {[%emt 0:00:28]} 26. Qd3 {[%emt 0:00:09]} Qe1 {[%emt 0:01:44]} 27. Rb7 {[%emt 0:03:56]} h4 {[%emt 0:02:00]} 28. gxh4 {[%emt 0:00:37]} Ra8 {[%emt 0:01:13]} 29. Qe3 {[%emt 0:05:21]} Qc3 {[%emt 0:01:42]} 30. Bc4 {[%emt 0:03:07]} Rd8 {[%emt 0:00:36]} 31. Kg2 {[%emt 0:01:53] a5 is the strong threat.} Rd2 {[%emt 0:00:35]} (31... Rd1 $142) 32. Qf3 {[%emt 0:01:17]} (32. Qf4 $142) 32... Qe5 {[%emt 0:00:53]} 33. Rb5 $36 {[%emt 0:00:56][%mdl 2048] White is really pushing.} Qc3 $2 {[%emt 0:00:48]} (33... Qd6 $16 34. Ra5 Kf8) 34. a5 {[%emt 0:01:24]} Ra2 {[%emt 0:00:22]} 35. h5 {[%emt 0:04:06]} (35. Rb8+ $142 Kh7 36. Bd3+ g6 37. h5 Rxa5 38. hxg6+ Kg7 39. Qg3) 35... Qxf3+ $2 {[%emt 0:00:36]} (35... Nd7 {keeps fighting.} 36. Qf4 Qe1) 36. Kxf3 {[%emt 0:00:08][%mdl 4096] Endgame. KRB-KRN} Kh7 {[%emt 0:00:31]} 37. Ke3 {[%emt 0:03:15]} (37. Rxb4 Rxa5 38. Rb7 Rf5+ 39. Ke3 Nd5+ 40. Bxd5 Rxd5 $11) 37... Ne8 {[%emt 0:00:28]} 38. Bd3+ {[%emt 0:00:53]} (38. Rxb4 Rxa5 39. Bd3+ Kh6 $16) 38... Kh6 {[%emt 0:00:32]} 39. Kd4 {[%emt 0:05:37]} (39. Rxb4 Rxa5 40. Rb8 Nc7 $16) 39... Nd6 {[%emt 0:00:30]} 40. Rb6 {[%emt 0:00:19]} (40. Rxb4 Rxa5 41. Be2 Rf5 $11) 40... Nc8 {[%emt 0:00:31]} 41. Rb8 {[%emt 0:02:11]} (41. Rxb4 Rxa5 42. Rb5 Ra6 $14) 41... Ne7 {[%emt 0:08:04]} 42. Rh8+ {[%emt 0:00:15]} (42. Rxb4 Rxa5 (42... Nc6+ 43. Kc3 $14) 43. Rb5 Rxb5 44. Bxb5 Kxh5) 42... Kg5 {[%emt 0:00:08]} 43. a6 {[%emt 0:00:07]} Ra5 {[%emt 0:01:23]} 44. Rh7 {[%emt 0:14:20]} ({Better is} 44. Ra8 $18) 44... Kf6 $16 {[%emt 0:21:30]} 45. h6 {[%emt 0:00:44]} gxh6 {[%emt 0:00:44]} 46. Rxh6+ {[%emt 0:00:06]} Kg7 {[%emt 0:00:24]} 47. Rh7+ {[%emt 0:00:22]} Kg8 {[%emt 0:00:41]} 48. Rh4 $1 {[%emt 0:00:18]} f5 {[%emt 0:00:33]} (48... Kg7 $142 49. Rg4+ Kh8) 49. Rh6 $1 $18 {[%emt 0:02:41]} Kf7 {[%emt 0:00:58]} 50. Rh7+ {[%emt 0:05:15]} Kf6 {[%emt 0:00:22]} 51. f4 {[%emt 0:00:14]} Nd5 {[%emt 0:00:43]} 52. Rb7 {[%emt 0:02:06] Hoping for Rb5.} Nxf4 {[%emt 0:00:28]} 53. Bb5 {[%emt 0:00:16]} (53. Rxb4 $2 {perishes.} e5+ (53... Nxh3 $2 54. Ra4 $18) 54. Kc3 Nd5+ 55. Kc4 Nxb4 56. Kxb4 Ra2 $19) 53... Nd5 {[%emt 0:00:29] [#]} 54. h4 {[%emt 0:04:58]} ({Less strong is} 54. Kc5 f4 $16) (54. a7 $1 $18) 54... f4 $16 {[%emt 0:00:29][%cal Bf5f4,Bf4f3][%mdl 32] [#]} 55. Bd3 {[%emt 0:01:08]} (55. Bc4 $142 $1) 55... f3 {[%emt 0:00:32]} 56. Ke4 {[%emt 0:01:20] White is more active.} f2 {[%emt 0:00:25]} 57. h5 {[%emt 0:00:48]} Kg5 {[%emt 0:00:30]} 58. Rf7 {[%emt 0:00:21]} Kxh5 {[%emt 0:00:36]} 59. Rxf2 {[%emt 0:00:18]} Nc7 {[%emt 0:00:30]} 60. Kd4 {[%emt 0:02:37]} (60. Kf4 $14 Nd5+ 61. Ke5 Nc7+ 62. Kd6 Nxa6 63. Kc6 (63. Kxe6 $2 {is the wrong capture.} Nc5+ 64. Kd6 Nxd3 $19)) 60... Nxa6 $11 {[%emt 0:00:25] The position is equal.} 61. Bxa6 {[%emt 0:00:48]} Rxa6 {[%emt 0:00:00] KR-KR} 62. Kc5 {[%emt 0:00:01]} Kg5 {[%emt 0:00:39]} 63. Kxb4 {[%emt 0:00:07]} e5 {[%emt 0:00:49][%cal Be6e5,Be5e4,Be4e3][%mdl 32]} 64. Kc5 {[%emt 0:00:16]} Ra5+ {[%emt 0:00:33]} 65. Kb6 {[%emt 0:00:33]} Ra3 {[%emt 0:00:23]} 66. b4 {[%emt 0:00:31][%cal Bb3b4,Bb4b5,Bb5b6][%mdl 32]} e4 {[%emt 0:00:08]} 67. b5 {[%emt 0:00:13]} e3 {[%emt 0:00:37]} 68. Rb2 {[%emt 0:00:09]} Kf4 {[%emt 0:00:35]} 69. Kb7 {[%emt 0:00:10]} Rd3 {[%emt 0:00:48]} 70. b6 {[%emt 0:00:14]} Ke5 {[%emt 0:01:05] Black defended with fortune.   Weighted Error Value: White=0.28 (precise) /Black=0.31.  Loses game:     	---       	Black=2      Missed win:     	White=1     	---        Mistake:       	White=7     	Black=8      Inaccurate:     	White=3     	Black=3      OK:         	White=29    	Black=26     Best:        	White=7     	Black=10     Strong:       	White=3     	---} 1/2-1/2